Cogmind - Beta 17 @@@ ROGUE MODE // 2026.07.30 @ 18:21:52 Player: LandRaider Result: Destroyed by LS-I8U(j) with Overtuned Pulse Rifle Performance ------------- Evolutions (0) 0 Regions Visited (3) 600 Robots Destroyed (2) 10 Value Destroyed (80) 80 Prototype IDs (1) 20 Alien Tech Used (0) 0 Bonus (713) 713 TOTAL SCORE: 1423 Bonus ------- Registered with UFD 300 Met Optimus in HQ 500 Friendly Fire -87 Cogmind --------- Core Integrity 0/250 Matter 290/300 Energy 96/265 System Corruption 3% Temperature Cool (32) Movement Walking (270) Ox2 Location -9/Scraptown Parts ------- > --- POWER (1) -------- Improved Ion Engine > --- PROPULSION (2) --- VSS Leg VSS Leg > --- UTILITY (2) ------ High-capacity Storage Unit Core Shielding > --- WEAPON (2) ------- Battle Rifle > --- INVENTORY (20) --- Light Deuterium Engine Improved Treads Antigrav System Advanced Cooling System Improved Signal Interpreter Advanced Terrain Scanner Improved Target Analyzer Core Analyzer Jamming Amplifier Hardened Light Armor Plating Makeshift Hacking Suite Overtuned Pulse Rifle Assault Rifle Heavy Assault Rifle EMP Blaster Subdweller Shrapnel Launcher Hammer Ripteeth Peak State ------------ > --- POWER ------------ Light Nuclear Core > --- PROPULSION ------- Overtuned Titanium Leg VSS Leg > --- UTILITY ---------- High-capacity Storage Unit Core Shielding > --- WEAPON ----------- Battle Rifle Hypervelocity Coil Gun > --- INVENTORY -------- Improved Ion Engine Light Deuterium Engine Improved Treads Overtuned Titanium Leg Antigrav System Advanced Cooling System Improved Signal Interpreter Advanced Terrain Scanner Improved Target Analyzer Core Analyzer Jamming Amplifier Hardened Light Armor Plating Spread Laser Assault Rifle Heavy Assault Rifle EMP Blaster Subdweller Shrapnel Launcher Hammer Ripteeth [Rating: 25] Favorites ----------- Power Ion Engine Engine Ion Engine Power Core Light Nuclear Core Propulsion Aluminum Leg Treads Light Treads Leg Aluminum Leg Wheel Compact Wheel Utility Core Shielding Storage High-capacity Storage Unit Protection Core Shielding Weapon Battle Rifle Energy Gun Small Laser Ballistic Gun Battle Rifle Ballistic Cannon Battle Cannon Launcher Subdweller Shrapnel Launcher Build | -11 -10 -10 -9 ------- Run | Yrd Mat Sub Scr Slots Evolved . | . . . . Power . | . . . . Propulsion . | . . . . Utility . | . . . . Weapon . | . . . . Parts Attached 26 | 5 2 6 13 Power 5 | 1 . 1 3 Engine 4 | 1 . 1 2 Core 1 | . . . 1 Reactor . | . . . . Propulsion 10 | 2 1 2 5 Treads 1 | 1 . . . Leg 7 | . . 2 5 Wheel 2 | 1 1 . . Hover . | . . . . Flight . | . . . . Utility 3 | 1 . . 2 Device . | . . . . Storage 2 | 1 . . 1 Processor . | . . . . Hackware . | . . . . Protection 1 | . . . 1 Artifact . | . . . . Weapon 8 | 1 1 3 3 Energy Gun 1 | . 1 . . Energy Cannon . | . . . . Ballistic Gun 4 | 1 . 1 2 Ballistic Cannon 1 | . . 1 . Launcher 2 | . . 1 1 Special Weapon . | . . . . Impact Weapon . | . . . . Slashing Weapon . | . . . . Piercing Weapon . | . . . . Special Melee Weapon . | . . . . Unidentified Prototypes . | . . . . Parts Lost 6 | . . 4 2 Power 2 | . . 1 1 Propulsion 1 | . . 1 . Utility . | . . . . Weapon 3 | . . 2 1 Highest Loss Streak 4 | . . 4 2 To Critical Strikes . | . . . . Average Backups 15 | 3 6 7 16 Power 1 | . 1 . 1 Propulsion 3 | 1 4 3 3 Utility 3 | . . . 4 Weapon 6 | . 1 2 6 Tool/Special . | . . . . Unused Backups 18 | . . 1 17 Power 2 | . . . 2 Propulsion 3 | . . . 3 Utility 7 | . . . 7 Weapon 6 | . . 1 5 Tool/Special . | . . . . Average Slot Usage (%) 74 | . 82 80 73 Engine 13 | . 14 13 12 Leg 25 | . . 4 28 Wheel 2 | . 28 22 . Storage 14 | . 14 14 14 Protection 12 | . . . 13 Energy Gun 1 | . 11 10 . Ballistic Gun 3 | . 14 7 2 Peak Build Rating 25 | 5 6 8 25 Average Rating 8 | 4 5 6 8 On Entrance 4 | . 5 6 8 Avg Prop Armor Cover (%) 3 | 3 . . . Naked Turns . | . . . . Heaviest Build 54 | 10 11 20 54 Greatest Support 38 | 20 26 26 38 Greatest Overweight (x) 2 | . . . 2 Average Overweight (x) 1 | . . . 1 Largest Inventory Capacity 20 | 8 8 8 20 Average Capacity 16 | 7 8 8 18 Most Carried 20 | 7 7 8 20 Average Carried 15 | 3 6 7 16 Final Capacity 20 | 8 8 8 20 Final Carried 18 | 7 7 6 18 Class Distribution -------------------- 92% | Mutant 4% | Derelict-Mutant 3% | Scavenger-Mutant Dominant Class ---------------- Mutant | -10/Materials Mutant | -10/Subcaves Mutant | -9/Scraptown Resources | -11 -10 -10 -9 ----------- Run | Yrd Mat Sub Scr Matter Collected 581 | 179 . 101 301 Remotely . | . . . . Salvage Created 102 | . . . 102 Parts 4 | . . . 4 Haulers Intercepted . | . . . . Recyclers Shooed . | . . . . Parts Field Recycled . | . . . . Retrieved Matter . | . . . . Parts Self-Destructed . | . . . . Prevented . | . . . . Parts Restored . | . . . . Kills | -11 -10 -10 -9 ------- Run | Yrd Mat Sub Scr Combat Hostiles Destroyed 2 | . . . 2 Guns 2 | . . . 2 Classes Destroyed 2 | . . . 2 Explorer 1 | . . . 1 Guru 1 | . . . 1 Best Kill Streak 1 | . . . 1 Combat Bots Only 1 | . . . 1 Max Kills in Single Turn 1 | . . . 1 Gunslinging . | . . . . Exploded . | . . . . Melee . | . . . . Uniques/NPCs Destroyed . | . . . . Combat | -11 -10 -10 -9 -------- Run | Yrd Mat Sub Scr Hostile Shots Fired 50 | . . 10 40 Missed 10 | . . 1 9 Hits 40 | . . 9 31 Melee 1 | . . . 1 Projectile 39 | . . 9 30 AOE 5 | . . 5 . Critical Strikes 2 | . . . 2 Actively Blocked 1 | . . . 1 Damage Taken 1022 | . . 409 613 Core 255 | . . 101 154 Absorbed by Shields . | . . . . Redirected to Shielding 34 | . . . 34 Core Remaining (%) 100 | 100 . . . Volleys Fired 10 | . . 1 9 Largest 2 | . . 2 2 Hottest 73 | . . 73 60 Shots Fired 17 | . . 2 15 Gun 14 | . . 1 13 Cannon 1 | . . 1 . Launcher 2 | . . . 2 Special . | . . . . Kinetic 15 | . . 1 14 Thermal 1 | . . 1 . Explosive . | . . . . Electromagnetic 1 | . . . 1 Robot Hit Streak 4 | . . 1 4 Robot Miss Streak 2 | . . 1 2 Penetration Max . | . . . . Secondary Targets . | . . . . Shots Hit Robots 10 | . . 1 9 Core Hits 6 | . . . 6 Critical Kills . | . . . . Critical Parts Destroyed . | . . . . Critical Strikes . | . . . . Melee Attacks . | . . . . Impact . | . . . . Slashing . | . . . . Piercing . | . . . . Sneak Attacks . | . . . . Combat Hostiles . | . . . . Follow-up Attacks . | . . . . Damage Inflicted 217 | . . 19 198 Guns 124 | . . . 124 Cannons 19 | . . 19 . Explosions 74 | . . . 74 Melee . | . . . . Ramming . | . . . . Kinetic 217 | . . 19 198 Thermal . | . . . . Explosive . | . . . . Electromagnetic . | . . . . Impact . | . . . . Slashing . | . . . . Piercing . | . . . . Highest Corruption 3 | . . . 3 Average Corruption 2 | . . . 2 Corruption Purged . | . . . . Corruption Blocked . | . . . . Effects 2 | . . . 2 Heat Flow Errors 2 | . . . 2 Overload Shots . | . . . . Overflow Damage . | . . . . Projectiles . | . . . . Explosions . | . . . . Melee . | . . . . Knockbacks 1 | . . 1 . Impact . | . . . . Kinetic 1 | . . 1 . Secondary . | . . . . Self-Inflicted Damage 34 | . . . 34 Shots 1 | . . . 1 Rammed . | . . . . Targets Rammed . | . . . . Kicked . | . . . . Crushed . | . . . . Highest Temperature 237 | . . . 237 Average Temperature 75 | . . . 75 Received Heat Transfer 259 | . . . 259 Siege Activations . | . . . . Martial Activations . | . . . . Shielding Activations . | . . . . Robots Disrupted . | . . . . Combat Hostiles . | . . . . Robots Corrupted . | . . . . Combat Hostiles . | . . . . Parts Fried . | . . . . Impact Corruptions . | . . . . Robots Melted . | . . . . Combat Hostiles . | . . . . Parts Melted . | . . . . Heat Transferred . | . . . . Parts Sabotaged . | . . . . Parts Stolen . | . . . . Parts Stripped . | . . . . Power Chain Reactions . | . . . . Alert | -11 -10 -10 -9 ------- Run | Yrd Mat Sub Scr Maximum Alert Level . | . . . . Low Security (%) 100 | 100 100 . . Level 1 . | . . . . Level 2 . | . . . . Level 3 . | . . . . Level 4 . | . . . . Level 5 . | . . . . High Security . | . . . . Max Security . | . . . . Peak Influence . | . . . . Initial . | . . . . Average . | . . . . Influence Increases . | . . . . Influence Decreases . | . . . . Squads Dispatched . | . . . . Investigation . | . . . . Extermination . | . . . . Reinforcement . | . . . . Assault . | . . . . Garrison . | . . . . Intercept . | . . . . Searches Triggered . | . . . . Construction Impeded . | . . . . Haulers Reinforced . | . . . . Active Scanning Responses . | . . . . Cargo Convoy Interrupts . | . . . . Stealth | -11 -10 -10 -9 --------- Run | Yrd Mat Sub Scr Distress Signals . | . . . . Communications Jammed . | . . . . Distress Signals . | . . . . Times Spotted 14 | . . 3 11 Peak Tracking Total 5 | . . 3 5 Tactical Retreats . | . . . . Traps | -11 -10 -10 -9 ------- Run | Yrd Mat Sub Scr Traps Triggered . | . . . . Indirectly . | . . . . Trap Hack Attempts . | . . . . Triggered . | . . . . Disarmed . | . . . . Reprogrammed . | . . . . Reused . | . . . . Traps Extracted . | . . . . Installed . | . . . . Triggered . | . . . . Machines | -11 -10 -10 -9 ---------- Run | Yrd Mat Sub Scr Machines Disabled 4 | . . . 4 Max in Single Turn 4 | . . . 4 Machines Repaired . | . . . . Machines Dismantled . | . . . . Machines Sabotaged . | . . . . Overloaded Fab Kills . | . . . . Hacking | -11 -10 -10 -9 --------- Run | Yrd Mat Sub Scr Machines Accessed 10 | . 1 1 8 Terminals 1 | . 1 . . Fabricators . | . . . . Repair Stations . | . . . . Recycling Units . | . . . . Scanalyzers . | . . . . Garrison Access . | . . . . Total Hacks 59 | . 1 5 53 Successful 59 | . 1 5 53 Failed . | . . . . Catastrophic . | . . . . Database Lockouts . | . . . . Manual . | . . . . Terminals 1 | . 1 . . Fabricators . | . . . . Repair Stations . | . . . . Recycling Units . | . . . . Scanalyzers . | . . . . Garrison Access . | . . . . Terminal Hacks 59 | . 1 5 53 Record 58 | . . 5 53 Alert Level 1 | . 1 . . Fabricator Hacks . | . . . . Repair Station Hacks . | . . . . Recycling Unit Hacks . | . . . . Scanalyzer . | . . . . Garrison Access Hacks . | . . . . Unauthorized Hacks . | . . . . Terminals . | . . . . Fabricators . | . . . . Repair Stations . | . . . . Recycling Units . | . . . . Scanalyzers . | . . . . Garrison Access . | . . . . Data Cores Recovered . | . . . . Used . | . . . . Hacking Detections . | . . . . Full Trace Events . | . . . . Feedback Events . | . . . . Feedback Blocked . | . . . . Robot Schematics Acquired . | . . . . Robots Built . | . . . . Authchips . | . . . . Time . | . . . . Total Robot Build Rating . | . . . . Part Schematics Acquired . | . . . . Parts Built . | . . . . Authchips . | . . . . Time . | . . . . Total Part Build Rating . | . . . . Part Studies Acquired . | . . . . Parts Repaired . | . . . . Time . | . . . . Parts Recycled . | . . . . Recycled Matter . | . . . . Retrieved Matter . | . . . . Retrieved Components . | . . . . Parts Scanalyzed . | . . . . Part Schematics Acquired . | . . . . Parts Damaged . | . . . . Bothacking | -11 -10 -10 -9 ------------ Run | Yrd Mat Sub Scr Used RIF Installer . | . . . . Robots Hacked . | . . . . Non-combat . | . . . . Combat . | . . . . Robot Hacks Applied . | . . . . Relay Couplers Released . | . . . . Fabnet Peak Effective % . | . . . . Robots Rewired . | . . . . Allies Hacked . | . . . . Hacks Repelled . | . . . . Allies | -11 -10 -10 -9 -------- Run | Yrd Mat Sub Scr Total Allies . | . . . . Largest Group . | . . . . Highest-Rated Group . | . . . . Highest-Rated Ally . | . . . . Total Orders . | . . . . Ally Attacks . | . . . . Total Damage . | . . . . Kills . | . . . . Allies Corrupted . | . . . . Allies Melted 8 | . . . 8 Intel | -11 -10 -10 -9 ------- Run | Yrd Mat Sub Scr Active Infowar (turns) . | . . . . Robot Analysis Total . | . . . . Derelict Logs Recovered . | . . . . Drone Launches . | . . . . Drone Recoveries . | . . . . Exploration | -11 -10 -10 -9 ------------- Run | Yrd Mat Sub Scr Turns Passed 3844 | 68 111 292 3373 Spaces Moved 1880 | 38 95 259 1488 Core 5 | 5 . . . Treads 29 | 29 . . . Legs 1519 | . . 31 1488 Wheels 327 | 4 95 228 . Hover . | . . . . Flight . | . . . . Fastest Speed 50 | 50 90 90 120 Average Speed 194 | 139 90 94 219 Slowest Speed 270 | 160 90 120 270 Overloaded Moves . | . . . . Propulsion Burnouts . | . . . . Robots Hopped . | . . . . Potential Cave-ins . | . . . . Cave-ins Triggered . | . . . . Exploration Rate (%) 40 | 3 38 26 93 Regions Visited 3 Branch Regions 2 Pre-discovered Areas 1 | . . 1 . Known Exits Taken . | . . . . Unknown Exits Taken 3 | 1 1 1 . Scrap Searched 10 | . . 3 7 Spaces Dug . | . . . . Terrain Destroyed 14 | . . . 14 Melee . | . . . . Projectile . | . . . . AOE 14 | . . . 14 Terrain Rammed . | . . . . Walls Destroyed . | . . . . Machines Disabled . | . . . . Actions | -11 -10 -10 -9 --------- Run | Yrd Mat Sub Scr Total 2055 | 53 119 304 1579 Wait 79 | . 22 33 24 Move 1877 | 37 94 258 1488 Hop . | . . . . Pick Up 41 | 11 1 4 25 Fast Attach 3 | 1 . . 2 Attach 13 | 4 1 4 4 Detach 2 | . . . 2 Swap 16 | . 1 3 12 Drop 14 | . . 1 13 Fire 10 | . . 1 9 Melee . | . . . . Ram . | . . . . Kick . | . . . . Crush . | . . . . Escape Stasis . | . . . . Rewire . | . . . . Trap . | . . . . Miscellaneous . | . . . . Route ------- -11/Scrapyard -10/Materials (discovered 2 exits: [*Min] / *Sub) -10/Subcaves (discovered 2 exits: [*Mat] / *Scr) -9/Scraptown (discovered 2 exits: [*Fac x2]) History --------- Turn | Location | Event 31 | -11/Scrapyard | Discovered new exit (range 15) 69 | -11/Scrapyard | Entered Materials 70 | -10/Materials | Met a group of wandering Federalists 122 | -10/Materials | Discovered new exit (range 11) 177 | -10/Materials | Discovered new exit (range 5) 180 | -10/Materials | Entered Subcaves 180 | -10/Subcaves | Accompanied by 1 ally 181 | -10/Subcaves | Continued accompanying wandering Federalists (2) 181 | -10/Subcaves | Approached by a straggling Scientist 235 | -10/Subcaves | Visited Clippyterm 238 | -10/Subcaves | Learned Research machine intel 238 | -10/Subcaves | Learned location of Deep Caves (-6) 310 | -10/Subcaves | Build established: Mutant 391 | -10/Subcaves | Discovered new exit (range 7) 392 | -10/Subcaves | Ambushed by Subdweller buried in earth 424 | -10/Subcaves | Shifting Twisted Machinery released Sub. Beam Cannon 428 | -10/Subcaves | Lost 3 allies 432 | -10/Subcaves | Lost 4 parts (1p1n2w) 441 | -10/Subcaves | Shifting Twisted Machinery released Sub. Shrapnel Launcher 454 | -10/Subcaves | Wandering Federalist uncovered a shortcut to Scraptown 472 | -10/Subcaves | Entered Scraptown 848 | -9/Scraptown | Heard Great Nut preacher, LISTEN AND RECITE! 920 | -9/Scraptown | Visited Assassins FH 947 | -9/Scraptown | Visited Bundlers 1187 | -9/Scraptown | Visited Red Mages 1333 | -9/Scraptown | Visited Symbiants 1437 | -9/Scraptown | Visited UFD Registry 1437 | -9/Scraptown | Registered with UFD as "Beampod" 1473 | -9/Scraptown | Visited Cave Peace 1580 | -9/Scraptown | Visited Fellowship of the Rings 1713 | -9/Scraptown | Discovered new exit (range 5) 1815 | -9/Scraptown | Guru changed UFD alias to "Hammertail" 2403 | -9/Scraptown | Visited DA-N13 Charitable Foundation 2429 | -9/Scraptown | Found DCF Scrap (28 items) 2508 | -9/Scraptown | Visited Junk Repository 2599 | -9/Scraptown | Visited Scrapoid Pod Storage 2807 | -9/Scraptown | Discovered new exit (range 5) 2895 | -9/Scraptown | Visited Curators Association 2994 | -9/Scraptown | Visited Abandonware Association 3025 | -9/Scraptown | Learned abandonware demo "ERRANTS.EXE" 3170 | -9/Scraptown | Met Optimus 3170 | -9/Scraptown | Accepted into 0bPrime 3267 | -9/Scraptown | Visited Scrap Suit Storage 3368 | -9/Scraptown | Visited Research Penetration Think Tank 3538 | -9/Scraptown | Civil war broke out across Scraptown 3543 | -9/Scraptown | Core integrity fell below 50% 3759 | -9/Scraptown | Lost 3 allies 3761 | -9/Scraptown | Visited Derelict Rescue Squad 3775 | -9/Scraptown | Optimus destroyed in the chaos of civil war 3838 | -9/Scraptown | Core integrity fell below 20% 3845 | -9/Scraptown | Destroyed by LS-I8U(j) with Overtuned Pulse Rifle Last Messages --------------- 03799_ Acquired 20 matter. 03799_ Ovr. Titanium Leg suddenly begins malfunctioning. 03801_ Destroyed Lgt. Ion Engine. 03801_ HV Slug penetrates J4-EKV(x). 03802_ Acquired 8 matter. 03804_ System corrupted: Heat flow error (+161). 03804_ HV Slug penetrates Wall. 03805_ Acquired 8 matter. 03807_ J4-EKV(x) destroyed. 03807_ HV Slug penetrates Wall. 03808_ Acquired 8 matter. 03810_ Ovr. Titanium Leg suddenly begins malfunctioning. 03812_ Dropped Ovr. Titanium Leg. 03813_ Acquired VSS Leg. 03818_ Acquired 20 matter. 03827_ HV Slug penetrates Wall. 03832_ Acquired 8 matter. 03837_ Critical hit (Burn: +50). 03840_ Lgt. Nuclear Core destroyed. 03841_ Hyp. Coil Gun destroyed. Map ----- +----------------------------------------------------+ | ######## ########### ##### ## #############?????? | | """""""" """"""""""" """"" "" "## "#?????? | | "## ""#?????? | | "## """" "#?????? | | "## "### "#?????? | | !%!%=## "#X ""#?????? | | %! [!! "### "#?????? | | """"""""""""""""""""""""" =%## """" "#?????? | | """"""""""""""""""""""""" !## ""#?????? | | ###### ################" *!! "# "#?????? | | # ##????????#""=[= #############????? | | # X"#????##??#""=%!j!=## #"""""#""#????? | | # "" "" ##????# ###"=%=jj==## !!!! !#????? | | # "" "" X"#????##"!#"!==!*%[## #????? | | # " " #######""=="!%g%=!!## #????? | | "" %!%=%[!!=%=%! X" #????? | | "" *%!*!%!%["## ##"#????? | | # " " ######### #=%[*!%["## !!! #???????? | | # "" "" ""#??????###"!==!!%*## #"""""#???????? | | # "" "" ##????????#""!!![=";#########???????? | | # X"#????????#" &%!!=%##"""""""#???????? | | # ##????????#" [=*!! ;# "" """#???????? | | ###### ################""/%* % ## ""#???????? | | ""?"""""?""" """""""""""==[ = #! ""#???????? | | """"""""""""" """ """ "" %= !%* ""#???????? | | [ @%*! ## "#???????? | | !% =%! ;# ""#???????? | | / ==%/ ## " """"#???????? | | ! ! !! ===! ##########???????? | | [%! =%[ [*%!= %= #???????????????? | | """""???"" """"""" " %!=""=" ! ##???????????????? | | ###?????????#######;!!%###### % #????????????????? | | ?????????????????# ; # #????????????????? | | ????????????????# ; #** #????????????????? | | ? ??????????????# #; #* #????????????????? | | ??????????????? ;##; ""# #????????????????? | | ??????????????" #?#; ["# #????????????????? | | ????????????? ??#;"" %"# ############?????? | | ???????????? ???##" "# #?????? | | ???????????" "?????#"" ""# ##?????? | | ???????????"###????#" "# #?????? | | ?????????? ?# #?????" "&& "# #?????? | | ???????????# #??????"""" """# #?????? | | ?????###### #????????###"#### ############?????? | | ######"""#"################## #####????????????? | | "" """""##"""##"""##"|"# """"#????????????? | | "" "#" "##"""##""|##" # "" "#????????????? | | /% "#????????????? | | =!%%/ " "#????????????? | | = = / """"#????????????? | +----------------------------------------------------+ Best States ------------- Heat Dissipation 25 Energy Generation 14 Energy Capacity 265 Matter Stores 300 Matter Capacity 300 Sight Range 16 Terrain Scan Density 10 Core Shielding 20 Evasion (%) 55 Recoil Reduction 1 Item Schematics ----------------- None Robot Schematics ------------------ None Fabricated ------------ Nothing Repaired ---------- Nothing Studied --------- None Alien Tech Used ----------------- None Achievements -------------- Civilization 2243 Do Not Disturb Link The Feds Longdome?! Challenges ------------ None Game ------ Seed ChromaticBoltWarhead Manual? 0 Play Time 00:36:28 Cumulative 20.4 hours Start 2026.07.30 @ 17:43:20 End 2026.07.30 @ 18:21:52 Sessions 1 Manual Loads 0 Difficulty Rogue Special Mode None Game No. 16 Rogue 14 Adventurer 2 Explorer 0 Win Type - Total 0 Types 0/0/0/0/0/0/0/0/0/0 Lore% 18 Gallery% 13 Achievement% 15 Wizard Run 0 Options --------- Layout 0 ASCII 0 Keyboard 0 Movement Mouse Keybinds 0 Fullscreen 2 Font 24/Smallcaps Map View 76x50 Zoom Use 0% Tactical HUD 1 Map Filters NONE Filters NONE Steam 1 RUN: 249e5041-5cdd-4f4d-b75a-f319a49434f3